Cogmind - Beta 12 @@@ ROGUE MODE // 2024.02.14 @ 19:33:28 Player: Dendrocnid Result: Destroyed by P-80 Master with Gamma Rifle Performance ------------- Evolutions (8) 4000 Regions Visited (10) 2000 Robots Destroyed (93) 465 Value Destroyed (3787) 3787 Prototype IDs (3) 60 Alien Tech Used (0) 0 Bonus (120) 120 TOTAL SCORE: 10432 Bonus ------- Follower Combat Kills 68 Entered DSFs 500 Friendly Fire -448 Cogmind --------- Core Integrity 0/1450 Matter 24/300 Energy 99/100 System Corruption 6% Temperature Cool (18) Movement Core (50) Location -2/Research Parts ------- > --- POWER (2) -------- (None) > --- PROPULSION (4) --- (None) > --- UTILITY (11) ----- (None) > --- WEAPON (6) ------- (None) > --- INVENTORY (5) ---- Targeting Computer Datajack Peak State ------------ > --- POWER ------------ Deuterium Engine > --- PROPULSION ------- Wheel Wheel Wheel Compact Wheel > --- UTILITY ---------- Advanced Heat Sink Cooling System Cooling System Huge Storage Unit Improved Targeting Computer Improved Targeting Computer Target Analyzer Improved Weapon Cycler > --- WEAPON ----------- Wave Gun Heavy Ion Cannon KE Penetrator Gauss Cannon Heavy Flak Cannon Heavy Flak Cannon > --- INVENTORY -------- Deuterium Engine Deuterium Engine Wheel Advanced Heat Sink Huge Storage Unit High-capacity Matter Pod Sensor Array Targeting Computer Improved Targeting Computer Hardened Heavy Armor Plating Layered Light Armor Plating Layered Light Armor Plating Improved Hardlight Generator Arc Projector Wave Gun Wave Gun Minigun Heavy Flak Cannon Long-range Missile Launcher Datajack Power Sword [Rating: 67] Favorites ----------- Power Deuterium Engine Engine Deuterium Engine Propulsion Wheel Wheel Wheel Utility Cooling System Device Cooling System Storage Huge Storage Unit Processor Improved Targeting Computer Protection Hardened Medium Armor Plating Weapon Enhanced Autogun Energy Gun Wave Gun Energy Cannon Heavy Ion Cannon Ballistic Gun Enhanced Autogun Ballistic Cannon Heavy Flak Cannon Launcher Long-range Missile Launcher Slashing Weapon Power Sword Build | -11 -10 -9 -8 -7 -6 -5 -4 -3 -3 -2 ------- Run | Jun Mat Mat Mat Fac Fac Fac Fac Res DSF Res Slots Evolved 16 | . . 2 2 2 2 2 2 2 . 2 Power 1 | . . . . . . . . 1 . . Propulsion 2 | . . . . . . 1 1 . . . Utility 9 | . . . 1 1 2 1 1 1 . 2 Weapon 4 | . . 2 1 1 . . . . . . Parts Attached 82 | 4 9 11 4 7 12 9 24 1 . 1 Power 4 | 1 . 1 . . . . 2 . . . Engine 4 | 1 . 1 . . . . 2 . . . Core . | . . . . . . . . . . . Reactor . | . . . . . . . . . . . Propulsion 13 | 2 . . 1 1 3 3 3 . . . Treads . | . . . . . . . . . . . Leg . | . . . . . . . . . . . Wheel 13 | 2 . . 1 1 3 3 3 . . . Hover . | . . . . . . . . . . . Flight . | . . . . . . . . . . . Utility 26 | 1 4 5 1 1 3 2 8 1 . . Device 10 | . 2 2 . 1 . 1 3 1 . . Storage 2 | 1 1 . . . . . . . . . Processor 6 | . . 1 . . 2 1 2 . . . Hackware . | . . . . . . . . . . . Protection 8 | . 1 2 1 . 1 . 3 . . . Artifact . | . . . . . . . . . . . Weapon 39 | . 5 5 2 5 6 4 11 . . 1 Energy Gun 13 | . 1 1 . 1 1 2 6 . . 1 Energy Cannon 2 | . . 1 . 1 . . . . . . Ballistic Gun 9 | . 3 3 1 . . 1 1 . . . Ballistic Cannon 9 | . . . 1 2 3 1 2 . . . Launcher 2 | . 1 . . . . . 1 . . . Special Weapon . | . . . . . . . . . . . Impact Weapon . | . . . . . . . . . . . Slashing Weapon 4 | . . . . 1 2 . 1 . . . Piercing Weapon . | . . . . . . . . . . . Special Melee Weapon . | . . . . . . . . . . . Unidentified Prototypes 3 | . . 2 . . . . 1 . . . Parts Lost 41 | . . 1 . 1 2 4 26 . 2 5 Power 2 | . . . . . . . 2 . . . Propulsion 10 | . . . . 1 1 2 5 . . 1 Utility 16 | . . 1 . . 1 2 7 . 2 3 Weapon 13 | . . . . . . . 12 . . 1 Highest Loss Streak 19 | . . 1 . 1 1 1 19 . 2 5 To Critical Strikes . | . . . . . . . . . . . Average Slot Usage (%) 93 | . 98 99 100 99 99 97 86 33 24 13 Engine 6 | . 14 11 9 7 6 5 4 . . . Wheel 16 | . 28 22 18 15 12 16 15 4 4 2 Device 11 | . 4 5 9 14 13 13 12 4 4 2 Storage 7 | . 14 11 9 7 6 5 4 . . . Processor 6 | . . . . . 13 13 15 19 11 6 Protection 5 | . 9 4 9 7 5 4 4 4 2 . Energy Gun 4 | . 2 . . 3 5 7 6 . . 2 Energy Cannon 5 | . . 10 9 7 6 5 3 . . . Ballistic Gun 16 | . 24 33 27 23 14 5 5 . . . Ballistic Cannon 8 | . . . 8 10 12 15 8 . . . Naked Turns 29 | . . . . . . . . . . 29 Heaviest Build 143 | 10 90 105 116 129 134 143 139 21 21 7 Greatest Support 46 | 26 26 26 26 20 32 42 46 16 16 16 Greatest Overweight (x) 13 | 3 3 4 11 6 13 5 5 1 1 . Average Overweight (x) 3 | . 1 3 5 5 5 3 2 1 . . Largest Inventory Capacity 25 | 8 25 25 25 25 25 25 25 5 5 5 Average Capacity 23 | 7 20 25 25 25 25 25 22 5 5 5 Most Carried 25 | 8 15 19 19 24 25 25 24 2 2 2 Average Carried 18 | 5 10 15 18 20 23 22 17 2 2 2 Final Capacity 25 | 8 25 25 25 25 25 25 5 5 5 5 Final Carried 25 | 8 15 18 18 24 24 25 3 2 2 2 Class Distribution -------------------- 45% | Executioner 18% | Mutant 16% | Scavenger-Executioner 11% | Tank 6% | Gunner Dominant Class ---------------- Mutant | -10/Materials Gunner | -9/Materials Tank | -8/Materials Executioner | -7/Factory Executioner | -6/Factory Executioner | -5/Factory Scavenger-Executioner | -4/Factory Scavenger-Executioner | -3/Research Mutant | -3/DSF Mutant | -2/Research Resources | -11 -10 -9 -8 -7 -6 -5 -4 -3 -3 -2 ----------- Run | Jun Mat Mat Mat Fac Fac Fac Fac Res DSF Res Matter Collected 3713 | 240 315 239 257 363 864 936 499 . . . Remotely . | . . . . . . . . . . . Salvage Created 4024 | . 306 306 267 388 1039 1100 618 . . . Parts 175 | . 18 21 15 11 43 38 29 . . . Haulers Intercepted 3 | . 1 . . . . 1 1 . . . Recyclers Shooed 3 | . . . . . . 3 . . . . Parts Field Recycled . | . . . . . . . . . . . Retrieved Matter . | . . . . . . . . . . . Parts Self-Destructed . | . . . . . . . . . . . Prevented . | . . . . . . . . . . . Kills | -11 -10 -9 -8 -7 -6 -5 -4 -3 -3 -2 ------- Run | Jun Mat Mat Mat Fac Fac Fac Fac Res DSF Res Combat Hostiles Destroyed 67 | . 5 6 6 7 17 14 12 . . . Guns 28 | . 3 4 2 1 5 8 5 . . . Cannons 35 | . . 2 3 6 12 6 6 . . . AOE 3 | . 2 . . . . . 1 . . . Classes Destroyed 16 | . 5 1 2 3 2 2 1 . . . Worker 3 | . . . . 1 1 1 . . . . Builder 4 | . 1 . . 1 . 2 . . . . Tunneler 2 | . . . 1 . . 1 . . . . Hauler 3 | . 1 . . . . 1 1 . . . Recycler 6 | . 1 . . 1 1 3 . . . . Operator 2 | . . . 1 . . 1 . . . . Watcher 4 | . 1 2 . 1 . . . . . . Swarmer 5 | . . . . . . . 5 . . . Grunt 32 | . 5 3 4 4 10 6 . . . . Brawler 2 | . . . . 1 . 1 . . . . Duelist 1 | . . . . . . 1 . . . . Sentry 11 | . . 3 2 1 3 1 1 . . . Specialist 2 | . . . . . 2 . . . . . Hunter 4 | . . . . . . 2 2 . . . Programmer 9 | . . . . 1 1 3 4 . . . Heavy 1 | . . . . . 1 . . . . . Thug 2 | . . . . . . . 2 . . . Best Kill Streak 9 | . 3 3 3 6 9 7 4 . . . Combat Bots Only 8 | . 3 3 3 4 8 3 4 . . . Max Kills in Single Turn 3 | . 2 1 2 2 1 3 1 . . . Gunslinging . | . . . . . . . . . . . Exploded 2 | . 2 . . . . . 1 . . . Melee . | . . . . . . . . . . . Uniques/NPCs Destroyed . | . . . . . . . . . . . Combat | -11 -10 -9 -8 -7 -6 -5 -4 -3 -3 -2 -------- Run | Jun Mat Mat Mat Fac Fac Fac Fac Res DSF Res Damage Taken 8099 | . 273 163 154 225 744 1020 3278 . 564 1678 Core 2568 | . 59 47 17 18 72 134 556 . 212 1453 Absorbed by Shields . | . . . . . . . . . . . Core Remaining (%) 85 | 100 76 88 96 97 91 86 51 . 83 . Volleys Fired 193 | . 29 15 15 20 28 37 41 . . 8 Largest 6 | . 2 4 5 6 6 6 6 . . 1 Hottest 408 | . 60 138 182 239 296 408 338 . . 65 Shots Fired 883 | . 56 60 62 120 166 224 187 . . 8 Gun 493 | . 54 45 35 72 83 81 115 . . 8 Cannon 386 | . . 15 27 48 83 143 70 . . . Launcher 4 | . 2 . . . . . 2 . . . Special . | . . . . . . . . . . . Kinetic 586 | . 46 45 50 88 114 134 109 . . . Thermal 281 | . . 15 12 32 52 90 72 . . 8 Explosive 4 | . 2 . . . . . 2 . . . Electromagnetic 12 | . 8 . . . . . 4 . . . Robot Hit Streak 18 | . 7 18 9 4 12 13 8 . . 6 Robot Miss Streak 10 | . 4 4 6 6 4 10 7 . . 2 Penetration Max 1 | . . . . . . 1 1 . . . Secondary Targets 2 | . 1 . . . . . 1 . . . Max Gunslinging Chain 1 | . 1 . . . . . 1 . . . Shots Hit Robots 513 | . 33 36 37 50 100 132 119 . . 6 Core Hits 273 | . 19 15 20 18 63 81 56 . . 1 Critical Kills 1 | . . . 1 . . . . . . . Critical Parts Destroyed 6 | . . . . . . . 6 . . . Critical Strikes 18 | . . . 1 2 2 1 12 . . . Burn 4 | . . . . . . 1 3 . . . Meltdown 1 | . . . 1 . . . . . . . Destroy 6 | . . . . . . . 6 . . . Blast 7 | . . . . 2 2 . 3 . . . Melee Attacks 7 | . . . . 1 3 . 3 . . . Impact . | . . . . . . . . . . . Slashing 7 | . . . . 1 3 . 3 . . . Piercing . | . . . . . . . . . . . Sneak Attacks . | . . . . . . . . . . . Combat Hostiles . | . . . . . . . . . . . Follow-up Attacks . | . . . . . . . . . . . Damage Inflicted 11073 | . 489 493 610 1230 2218 3054 2753 . . 226 Guns 4842 | . 294 328 277 366 853 1156 1345 . . 223 Cannons 5640 | . . 165 333 695 1365 1898 1184 . . . Explosions 578 | . 195 . . 169 . . 214 . . . Melee . | . . . . . . . . . . . Ramming 13 | . . . . . . . 10 . . 3 Kinetic 6952 | . 225 328 507 797 1499 2028 1568 . . . Thermal 3594 | . . 165 103 433 719 1026 925 . . 223 Explosive 409 | . 195 . . . . . 214 . . . Electromagnetic 105 | . 69 . . . . . 36 . . . Impact . | . . . . . . . . . . . Slashing . | . . . . . . . . . . . Piercing . | . . . . . . . . . . . Highest Corruption 9 | . . . . . 1 9 4 . . 5 Average Corruption 4 | . . . . . 1 6 3 . . 2 Corruption Purged . | . . . . . . . . . . . Corruption Blocked . | . . . . . . . . . . . Effects 40 | . . . . . . 28 10 . . 2 Message Errors 6 | . . . . . . 4 2 . . . Matter Fused 17 | . . . . . . 9 6 . . 2 Heat Flow Errors 5 | . . . . . . 5 . . . . Energy Discharges 2 | . . . . . . 2 . . . . Data Loss (minor) 4 | . . . . . . 4 . . . . Data Loss (major) 1 | . . . . . . . 1 . . . Misfires 4 | . . . . . . 3 1 . . . Weapon Failures 1 | . . . . . . 1 . . . . Overload Shots . | . . . . . . . . . . . Overflow Damage 179 | . . 8 . 80 . 29 62 . . . Projectiles 86 | . . 8 . 21 . 29 28 . . . Explosions 93 | . . . . 59 . . 34 . . . Melee . | . . . . . . . . . . . Knockbacks 72 | . . . 8 3 11 36 14 . . . Impact . | . . . . . . . . . . . Kinetic 70 | . . . 8 3 11 35 13 . . . Secondary 2 | . . . . . . 1 1 . . . Self-Inflicted Damage 42 | . 21 . . . . 16 4 . . 1 Shots 3 | . 2 . . . . 1 . . . . Rammed 7 | . . . . . . . 6 . . 1 Targets Rammed 7 | . . . . . . . 6 . . 1 Kicked . | . . . . . . . . . . . Crushed . | . . . . . . . . . . . Highest Temperature 723 | . 43 504 381 171 374 314 723 . . . Average Temperature 119 | . 13 164 158 58 113 87 193 . . . Received Heat Transfer 1401 | . 144 72 72 54 258 261 312 . 192 36 Effects 20 | . . 3 7 . . 1 9 . . . Shutdowns 2 | . . 1 . . . . 1 . . . Energy Bleed 7 | . . 2 1 . . 1 3 . . . Interference 5 | . . . 5 . . . . . . . Matter Decay 1 | . . . . . . . 1 . . . Short Circuit 2 | . . . 1 . . . 1 . . . Damage (minor) 3 | . . . . . . . 3 . . . Siege Activations . | . . . . . . . . . . . Robots Corrupted . | . . . . . . . . . . . Combat Hostiles . | . . . . . . . . . . . Parts Fried . | . . . . . . . . . . . Impact Corruptions . | . . . . . . . . . . . Robots Melted 1 | . . . 1 . . . . . . . Combat Hostiles 1 | . . . 1 . . . . . . . Parts Melted 5 | . . . 4 . 1 . . . . . Heat Transferred 5813 | . . 296 185 607 1242 1670 1591 . . 222 Parts Sabotaged . | . . . . . . . . . . . Parts Stolen . | . . . . . . . . . . . Parts Stripped . | . . . . . . . . . . . Power Chain Reactions . | . . . . . . . . . . . Missiles Intercepted . | . . . . . . . . . . . Alert | -11 -10 -9 -8 -7 -6 -5 -4 -3 -3 -2 ------- Run | Jun Mat Mat Mat Fac Fac Fac Fac Res DSF Res Peak Influence 366 | . 152 323 260 187 350 363 366 114 100 71 Initial 171 | . . 63 63 27 36 171 164 114 85 53 Average 146 | . 49 157 131 90 98 273 241 114 86 51 Maximum Alert Level 1 | . . 1 1 . 1 1 1 . . . Low Security (%) 68 | 100 100 77 91 100 85 10 16 100 100 100 Level 1 31 | . . 22 8 . 14 89 83 . . . Level 2 . | . . . . . . . . . . . Level 3 . | . . . . . . . . . . . Level 4 . | . . . . . . . . . . . Level 5 . | . . . . . . . . . . . High Security . | . . . . . . . . . . . Max Security . | . . . . . . . . . . . Squads Dispatched 18 | . 1 1 . 2 7 1 4 . 1 1 Investigation 3 | . 1 1 . . . . . . . 1 Extermination 6 | . . . . 1 2 1 2 . . . Reinforcement 8 | . . . . . 5 . 2 . 1 . Assault . | . . . . . . . . . . . Garrison 1 | . . . . 1 . . . . . . Intercept . | . . . . . . . . . . . Searches Triggered . | . . . . . . . . . . . Construction Impeded 2 | . . . . . 1 . 1 . . . Haulers Reinforced 1 | . . . . . . . 1 . . . Active Scanning Responses . | . . . . . . . . . . . Cargo Convoy Interrupts . | . . . . . . . . . . . Stealth | -11 -10 -9 -8 -7 -6 -5 -4 -3 -3 -2 --------- Run | Jun Mat Mat Mat Fac Fac Fac Fac Res DSF Res Distress Signals 5 | . . 1 . . . 1 2 . . 1 Communications Jammed . | . . . . . . . . . . . Distress Signals . | . . . . . . . . . . . Times Spotted 119 | . 11 12 7 10 20 20 21 . 3 15 Peak Tracking Total 13 | . 3 4 3 3 3 3 8 . 3 13 Tactical Retreats 5 | . . 2 . 1 1 . . . 1 . Traps | -11 -10 -9 -8 -7 -6 -5 -4 -3 -3 -2 ------- Run | Jun Mat Mat Mat Fac Fac Fac Fac Res DSF Res Traps Triggered 7 | . 1 . . . . 2 . . 1 3 Indirectly . | . . . . . . . . . . . Trap Hack Attempts . | . . . . . . . . . . . Triggered . | . . . . . . . . . . . Disarmed . | . . . . . . . . . . . Reprogrammed . | . . . . . . . . . . . Reused . | . . . . . . . . . . . Traps Extracted . | . . . . . . . . . . . Installed . | . . . . . . . . . . . Triggered . | . . . . . . . . . . . Machines | -11 -10 -9 -8 -7 -6 -5 -4 -3 -3 -2 ---------- Run | Jun Mat Mat Mat Fac Fac Fac Fac Res DSF Res Machines Disabled 12 | . . . 1 5 . 3 3 . . . Max in Single Turn 4 | . . . 1 4 . 2 1 . . . Garrison Access 1 | . . . . 1 . . . . . . Machines Repaired . | . . . . . . . . . . . Machines Sabotaged . | . . . . . . . . . . . Overloaded Fab Kills . | . . . . . . . . . . . Hacking | -11 -10 -9 -8 -7 -6 -5 -4 -3 -3 -2 --------- Run | Jun Mat Mat Mat Fac Fac Fac Fac Res DSF Res Machines Accessed 17 | . 3 4 1 4 1 2 . 1 . 1 Terminals 15 | . 3 4 1 2 1 2 . 1 . 1 Fabricators 1 | . . . . 1 . . . . . . Repair Stations . | . . . . . . . . . . . Recycling Units . | . . . . . . . . . . . Scanalyzers . | . . . . . . . . . . . Garrison Access 1 | . . . . 1 . . . . . . Total Hacks 36 | . 9 8 1 5 3 3 . 4 . 3 Successful 14 | . 4 3 1 3 1 1 . 1 . . Failed 22 | . 5 5 . 2 2 2 . 3 . 3 Catastrophic 4 | . 1 1 . 1 . 1 . . . . Database Lockouts . | . . . . . . . . . . . Manual 13 | . 6 6 . . . 1 . . . . Terminals 33 | . 9 8 1 2 3 3 . 4 . 3 Fabricators 1 | . . . . 1 . . . . . . Repair Stations . | . . . . . . . . . . . Recycling Units . | . . . . . . . . . . . Scanalyzers . | . . . . . . . . . . . Garrison Access 2 | . . . . 2 . . . . . . Terminal Hacks 8 | . 1 1 1 2 1 1 . 1 . . Open DSF 5 | . . . . 2 1 1 . 1 . . Alert Level 1 | . 1 . . . . . . . . . Registered Components 1 | . . . 1 . . . . . . . Zone Layout 1 | . . 1 . . . . . . . . Fabricator Hacks . | . . . . . . . . . . . Repair Station Hacks . | . . . . . . . . . . . Recycling Unit Hacks . | . . . . . . . . . . . Scanalyzer . | . . . . . . . . . . . Garrison Access Hacks 1 | . . . . 1 . . . . . . Seal Access 1 | . . . . 1 . . . . . . Unauthorized Hacks 5 | . 3 2 . . . . . . . . Terminals 5 | . 3 2 . . . . . . . . Botnet 5 | . 3 2 . . . . . . . . Fabricators . | . . . . . . . . . . . Repair Stations . | . . . . . . . . . . . Recycling Units . | . . . . . . . . . . . Scanalyzers . | . . . . . . . . . . . Garrison Access . | . . . . . . . . . . . Data Cores Recovered 1 | . . . 1 . . . . . . . Used . | . . . . . . . . . . . Hacking Detections 11 | . 2 3 . 2 1 1 . 1 . 1 Full Trace Events 2 | . . 1 . . . . . . . 1 Feedback Events . | . . . . . . . . . . . Feedback Blocked . | . . . . . . . . . . . Robot Schematics Acquired . | . . . . . . . . . . . Robots Built . | . . . . . . . . . . . Authchips . | . . . . . . . . . . . Time . | . . . . . . . . . . . Total Robot Build Rating . | . . . . . . . . . . . Part Schematics Acquired . | . . . . . . . . . . . Parts Built . | . . . . . . . . . . . Authchips . | . . . . . . . . . . . Time . | . . . . . . . . . . . Total Part Build Rating . | . . . . . . . . . . . Parts Repaired . | . . . . . . . . . . . Time . | . . . . . . . . . . . Parts Recycled . | . . . . . . . . . . . Recycled Matter . | . . . . . . . . . . . Retrieved Matter . | . . . . . . . . . . . Retrieved Components . | . . . . . . . . . . . Parts Scanalyzed . | . . . . . . . . . . . Part Schematics Acquired . | . . . . . . . . . . . Parts Damaged . | . . . . . . . . . . . Bothacking | -11 -10 -9 -8 -7 -6 -5 -4 -3 -3 -2 ------------ Run | Jun Mat Mat Mat Fac Fac Fac Fac Res DSF Res Used RIF Installer . | . . . . . . . . . . . Robots Hacked . | . . . . . . . . . . . Non-combat . | . . . . . . . . . . . Combat . | . . . . . . . . . . . Robot Hacks Applied . | . . . . . . . . . . . Relay Couplers Released . | . . . . . . . . . . . Fabnet Peak Effective % . | . . . . . . . . . . . Robots Rewired . | . . . . . . . . . . . Allies Hacked . | . . . . . . . . . . . Hacks Repelled . | . . . . . . . . . . . Allies | -11 -10 -9 -8 -7 -6 -5 -4 -3 -3 -2 -------- Run | Jun Mat Mat Mat Fac Fac Fac Fac Res DSF Res Total Allies 3 | . . . . . . 3 . . . . Largest Group 3 | . . . . . . 3 3 . . . Highest-Rated Group 93 | . . . . . . 93 93 . . . Highest-Rated Ally 31 | . . . . . . 31 31 . . . Total Orders . | . . . . . . . . . . . Ally Attacks 13 | . . . . . . 2 11 . . . Total Damage 165 | . . . . . . 40 125 . . . Kills 3 | . . . . . . 1 2 . . . Allies Corrupted . | . . . . . . . . . . . Allies Melted . | . . . . . . . . . . . Intel | -11 -10 -9 -8 -7 -6 -5 -4 -3 -3 -2 ------- Run | Jun Mat Mat Mat Fac Fac Fac Fac Res DSF Res Robot Analysis Total . | . . . . . . . . . . . Derelict Logs Recovered . | . . . . . . . . . . . Drone Launches . | . . . . . . . . . . . Drone Recoveries . | . . . . . . . . . . . Exploration | -11 -10 -9 -8 -7 -6 -5 -4 -3 -3 -2 ------------- Run | Jun Mat Mat Mat Fac Fac Fac Fac Res DSF Res Turns Passed 6180 | 68 561 612 495 1229 1084 1051 779 12 93 196 Spaces Moved 3547 | 56 364 383 242 653 540 585 448 11 85 180 Core 182 | 24 . . . . . . 16 . . 142 Treads . | . . . . . . . . . . . Legs . | . . . . . . . . . . . Wheels 3365 | 32 364 383 242 653 540 585 432 11 85 38 Hover . | . . . . . . . . . . . Flight . | . . . . . . . . . . . Fastest Speed 50 | 50 90 135 150 155 145 131 50 110 90 50 Average Speed 140 | 95 118 137 163 169 168 137 122 110 100 58 Slowest Speed 275 | 200 135 150 245 170 275 165 165 110 110 90 Overloaded Moves . | . . . . . . . . . . . Propulsion Burnouts . | . . . . . . . . . . . Robots Hopped . | . . . . . . . . . . . Cave-ins Triggered . | . . . . . . . . . . . Exploration Rate (%) 23 | 3 56 33 21 17 18 17 12 1 74 8 Regions Visited 10 Branch Regions . Pre-discovered Areas . | . . . . . . . . . . . Known Exits Taken 2 | . . 1 . . . . . 1 . . Unknown Exits Taken 7 | 1 1 . 1 1 1 1 1 . . . Scrap Searched . | . . . . . . . . . . . Spaces Dug 7 | . . . . 1 3 . 3 . . . Terrain Destroyed 177 | . 28 . . 32 13 58 45 . . 1 Melee 7 | . . . . 1 3 . 3 . . . Projectile 48 | . . . . 11 10 16 10 . . 1 AOE 121 | . 28 . . 20 . 41 32 . . . Terrain Rammed . | . . . . . . . . . . . Walls Destroyed . | . . . . . . . . . . . Machines Disabled . | . . . . . . . . . . . Actions | -11 -10 -9 -8 -7 -6 -5 -4 -3 -3 -2 --------- Run | Jun Mat Mat Mat Fac Fac Fac Fac Res DSF Res Total 4354 | 69 447 445 317 733 648 730 599 11 93 262 Wait 409 | . 30 20 51 42 40 85 69 . . 72 Move 3537 | 55 363 382 241 652 539 584 447 10 84 180 Hop . | . . . . . . . . . . . Pick Up 69 | 10 10 11 4 9 13 9 3 . . . Fast Attach 12 | 2 3 . . . 1 3 2 . . 1 Attach 41 | 2 3 3 2 3 4 4 19 1 . . Detach 2 | . 2 . . . . . . . . . Swap 29 | . 3 8 2 4 7 2 3 . . . Drop 40 | . 4 6 2 2 13 6 6 . 1 . Fire 193 | . 29 15 15 20 28 37 41 . . 8 Melee 7 | . . . . 1 3 . 3 . . . Ram 7 | . . . . . . . 6 . . 1 Kick . | . . . . . . . . . . . Crush . | . . . . . . . . . . . Escape Stasis 8 | . . . . . . . . . 8 . Rewire . | . . . . . . . . . . . Trap . | . . . . . . . . . . . Miscellaneous . | . . . . . . . . . . . Route ------- -11/Junkyard -10/Materials (discovered 2 exits: *Mat / [*Min]) -9/Materials -8/Materials -7/Factory -6/Factory -5/Factory -4/Factory (discovered 2 exits: *Res / [*Upp]) -3/Research -3/DSF -2/Research History --------- Turn | Location | Event 8 | -11/Junkyard | Discovered new exit (range 15) 69 | -11/Junkyard | Entered Materials 304 | -10/Materials | Build established: Mutant 306 | -10/Materials | Discovered new exit (range 6) 477 | -10/Materials | Discovered new exit (range 16) 630 | -10/Materials | Entered another Materials area 630 | -9/Materials | Evolved 2 slots: Weapon x2 900 | -9/Materials | Build established: Tank 1173 | -9/Materials | Discovered new exit (range 14) 1201 | -9/Materials | Build established: Gunner 1226 | -9/Materials | Identified exit to Materials 1242 | -9/Materials | Entered another Materials area 1242 | -8/Materials | Evolved 2 slots: Utility x1, Weapon x1 1496 | -8/Materials | Discovered new exit (range 16) 1506 | -8/Materials | Build established: Tank 1737 | -8/Materials | Entered Factory 1737 | -7/Factory | Evolved 2 slots: Utility x1, Weapon x1 2076 | -7/Factory | Build established: Executioner 2576 | -7/Factory | Garrison activated, responded to threat 2827 | -7/Factory | Discovered new exit (range 4) 2966 | -7/Factory | Entered another Factory area 2966 | -6/Factory | Evolved 2 slots: Utility x2 3886 | -6/Factory | Destroyed 8 combat bots 3982 | -6/Factory | Discovered new exit (range 5) 4050 | -6/Factory | Entered another Factory area 4050 | -5/Factory | Evolved 2 slots: Propulsion x1, Utility x1 4903 | -5/Factory | Build established: Scavenger-Executioner 5055 | -5/Factory | Discovered new exit (range 14) 5056 | -5/Factory | Allied Derelicts emerged from ambush trap array 5101 | -5/Factory | Entered another Factory area 5101 | -4/Factory | Accompanied by 3 allies 5101 | -4/Factory | Evolved 2 slots: Propulsion x1, Utility x1 5470 | -4/Factory | Discovered new exit (range 11) 5559 | -4/Factory | Lost 6 parts (1p2n3w) 5830 | -4/Factory | Lost 19 parts (1p3n6u9w) 5877 | -4/Factory | Discovered new exit (range 4) 5880 | -4/Factory | Entered Research 5880 | -3/Research | Evolved 2 slots: Power x1, Utility x1 5892 | -3/Research | Identified exit to DSF 5892 | -3/Research | Entered DSF 5925 | -3/DSF | Additional patrols routed to DSF 5972 | -3/DSF | Discovered new exit (range 15) 5985 | -3/DSF | Entered Research 5985 | -2/Research | Evolved 2 slots: Utility x2 6069 | -2/Research | Build established: Mutant 6142 | -2/Research | Core integrity fell below 50% 6179 | -2/Research | Core integrity fell below 20% 6181 | -2/Research | Destroyed by P-80 Master with Gamma Rifle Last Messages --------------- 06152_ Imp. Targeting Computer destroyed. 06159_ Triggered Fusion Bomb Trap. 06159_ An explosion rips through the floor. 06161_ The unstable cave ceiling collapses. 06161_ Triggered Blade Trap. 06161_ Massive razor-sharp blades shoot up from within the floor. 06165_ Triggered Fusion Bomb Trap. 06165_ An explosion rips through the floor. 06167_ Slug penetrates Repair Station. 06168_ The unstable cave ceiling collapses. 06174_ Connecting with Door Terminal... 06174_ Current location identified: Research 06174_ ALERT: Suspicious activity at Terminal R001. Dispatching Investigation squad. 06176_ Slug penetrates P-80 Master. 06176_ P-80 Master destroyed. 06179_ Penetrated by Slug. 06179_ Slug penetrates Wall. 06180_ The unstable cave ceiling collapses. 06180_ Penetrated by Slug. Map ----- +----------------------------------------------------+ | ?????????????????????????????????????????????????? | | ?????????????????????????????????????????????????? | | ?????????????????????????????????????????????????? | | ?????????????????????????????????????????????????? | | ?????????????????????????????????????????????????? | | ?????????????????????????????????????????????????? | | ?????????????????????????????????????????????????? | | ?????????????????????????????????????????????????? | | ?????????????????????????????????????????????????? | | ?????????????????????????????????????????????????? | | ?????????????????????????????????????????????????? | | ??????????????????????"""""""????????????????????? | | ????????????????##????# T#????????????????????? | | ??????????????### ###?## ##????????????????????? | | ??????????????# !! ?# #?????????????????????? | | ??????????????# != ?# #?????????????????????? | | ??????????????# """# #?????????????????????? | | ??????????????# """# #?????????????????????? | | ??????????????# R"# #?????????????????????? | | ??????????????# Y"""# #?????????????????????? | | ??????????????# # #?????????????????????? | | ??????????????# Y # #?????????????????????? | | ??????????????# # #?????????????????????? | | ??????????????## #?????????????????????? | | ??????????????# #?????????????????????? | | ??????????????# @ #?????????????????????? | | ??????????????# #?????????????????????? | | ??????????????# **= ==#?????????????????????? | | ??????########### *!=p!%#?????????????????????? | | ??????# # *== !#?????????????????????? | | ??????? # +?????????????????????? | | ???????? """ # #?????????????????????? | | ????????? """" hhh###########???????????? | | ???????? """" # #???????????? | | ??????# """ ! gg # ????######### | | ??????# ^ # ??????# | | ??????# gg " # ????????# | | ??????######## # g"" h###+###########[ """ | | ???????????? ## G # """ | | ?????????? ## "" + """ | | ????????? =## "k # | | ??????? # ###+######### # | | ??????########?# #???????????# # | | ???????????????# +???????????#"######### | | ???????????????# ####+##???????????# """T""" | | ???????????????# #??? #???????????# """ """ | | ???????????????## ##???? #???????????# | | ????????????????# #??????#???????????# | | ????????????????# #??????????????????# """""" | | ????????????????# #??????????????????# """""" | +----------------------------------------------------+ Best States ------------- Heat Dissipation 106 Energy Generation 14 Energy Capacity 275 Matter Stores 300 Matter Capacity 300 Sight Range 16 Robot Scan Range 14 Terrain Scan Density 10 Armor Coverage 600 Weapon Cycling 20 Evasion (%) 50 Targeting Accuracy 12 Target Analysis 5 Core Analysis 6 Item Schematics ----------------- None Robot Schematics ------------------ None Fabricated ------------ Nothing Alien Tech Used ----------------- None Achievements -------------- None Challenges ------------ None Game ------ Seed GrenadeAluminumCalibrator Manual? 0 Play Time 01:07:53 Cumulative 138.7 hours Start 2024.02.03 @ 11:02:52 End 2024.02.14 @ 19:33:28 Sessions 4 Manual Loads 0 Difficulty Rogue Special Mode None Game No. 214 Rogue 214 Adventurer 0 Explorer 0 Win Type - Total 1 Types 1/0/0/0/0/0/0/0/0 Lore% 32 Gallery% 52 Achievement% 44 Wizard Run 0 Options --------- ASCII 0 Keyboard 0 Movement Mouse Keybinds 0 Fullscreen 1 Font 18/SmallcapsGlow Map View 76x50 Tactical HUD 1 Map Filters NONE Filters NONE Steam 1 RUN: 9957b45f-3efc-4030-85ec-6006a0b34125